bitfinex/quotes_SOLUSD_20260113
["timestamp","ask_amount","ask_price","bid_price","bid_amount"]
[1768344328092,23.84054196,146.81,146.75,3.89339449]
[1768344328388,23.84054196,146.81,146.75,4.05663217]
[1768344328690,23.84054196,146.81,146.75,0.16323768]
[1768344328861,24.51268593,146.81,146.75,0.16323768]
[1768344329361,24.51268593,146.81,146.75,4.05663217]
[1768344329564,24.51268593,146.81,146.75,0.16323768]
[1768344329862,0.67214397,146.8,146.75,0.16323768]
[1768344330791,0.67214397,146.8,146.74,4.05663217]
[1768344330968,6.81245316,146.79,146.75,0.16323768]
[1768344331484,0.67214397,146.78,146.74,3.89339449]
[1768344331651,0.67214397,146.78,146.72,3.89339449]
[1768344332057,0.67214397,146.78,146.69,12.50323768]
[1768344332367,34.05282348,146.84,146.69,12.50323768]
[1768344332368,0.67214397,146.82,146.75,4.05663217]
[1768344332586,0.67214397,146.82,146.76,3.89339449]
[1768344332971,0.67214397,146.81,146.78,3.89339449]
[1768344334077,0.67214397,146.86,146.8,3.89339449]
[1768344334279,0.67214397,146.86,146.82,3.89339449]
[1768344334686,6.80854266,146.88,146.82,4.05663217]
[1768344334687,0.67214397,146.87,146.82,4.05663217]
[1768344334988,0.67214397,146.87,146.82,6.97408539]
[1768344335162,0.67214397,146.87,146.83,3.89339449]
[1768344336070,0.67214397,146.87,146.83,16.23339449]
[1768344336268,6.80854266,146.88,146.83,16.23339449]
[1768344336505,0.68435029,146.87,146.83,12.34]
[1768344336685,0.68435029,146.87,146.81,23.20773011]
[1768344336991,0.68435029,146.85,146.79,3.89339449]
[1768344337192,0.68435029,146.85,146.78,0.16323768]
[1768344337377,0.68435029,146.84,146.78,0.16323768]
[1768344337690,0.68435029,146.84,146.78,6.97589901]
[1768344337995,7.4947985,146.84,146.78,6.97589901]
[1768344338894,0.68435029,146.83,146.78,0.16323768]
[1768344339075,0.68435029,146.83,146.77,23.04662167]
[1768344339076,0.68435029,146.83,146.77,3.89339449]
[1768344339579,0.68435029,146.82,146.75,3.89339449]
[1768344339789,0.68435029,146.8,146.73,3.89339449]
[1768344340187,0.68435029,146.78,146.73,3.89339449]
[1768344340385,0.68435029,146.78,146.73,4.05663217]
[1768344340589,7.49642762,146.8,146.73,10.87148907]
[1768344341375,7.49642762,146.8,146.74,0.16323768]
[1768344341595,7.49642762,146.8,146.75,3.89339449]
[1768344341794,7.49642762,146.8,146.74,6.97790565]
[1768344341969,12.36,146.85,146.74,6.97790565]
[1768344341970,6.81155349,146.81,146.75,4.05663217]
[1768344342173,0.68435029,146.82,146.77,4.05663217]
[1768344342399,11.38802735,146.84,146.77,4.05663217]
[1768344342983,0.68435029,146.86,146.79,4.05663217]
[1768344343299,0.68435029,146.86,146.79,16.39663217]
[1768344343300,0.68435029,146.85,146.79,16.39663217]
[1768344343701,0.68435029,146.85,146.8,6.8119891]
[1768344345090,6.80938007,146.86,146.79,16.39663217]
[1768344345091,0.68435029,146.88,146.81,10.86784172]
[1768344345394,7.49188926,146.9,146.83,0.16323768]
[1768344345594,0.68435029,146.9,146.85,3.89339449]
[1768344346586,7.49175461,146.9,146.85,3.89339449]
[1768344348889,7.49175461,146.9,146.84,6.9732721]
[1768344349094,7.49175461,146.9,146.85,3.89339449]
[1768344349295,7.49175461,146.9,146.85,10.31880473]
[1768344349593,0.68435029,146.9,146.85,17.29166423]
[1768344349789,0.68435029,146.92,146.87,10.31880473]
[1768344349993,0.68435029,146.94,146.89,10.31880473]
[1768344350295,0.68435029,146.94,146.9,22.65880473]
[1768344350995,0.78435029,146.96,146.9,22.82204241]
[1768344351311,0.78435029,146.96,146.92,10.31880473]
[1768344353805,0.1,146.96,146.92,10.31880473]
[1768344355115,0.78435029,146.96,146.91,6.80660434]
[1768344355287,0.78435029,146.96,146.92,22.65880473]
[1768344355694,0.1,146.96,146.92,22.82204241]
[1768344356123,0.1,146.96,146.92,22.65880473]
[1768344356704,0.1,146.96,146.93,10.48204241]
[1768344356911,0.1,146.96,146.93,12.34]
[1768344357899,6.80381408,146.98,146.93,22.65880473]
[1768344358407,7.48761057,146.99,146.93,29.46467633]
[1768344358585,7.48761057,146.99,146.93,22.65880473]
[1768344358787,0.68435029,146.98,146.93,22.65880473]
[1768344359491,0.68435029,146.98,146.93,12.34]
[1768344359700,7.48845997,146.97,146.92,10.31880473]
[1768344360216,7.48845997,146.97,146.92,22.63880473]
[1768344360416,0.68435029,146.95,146.89,10.31880473]
[1768344360611,0.68435029,146.95,146.89,22.63880473]
[1768344360916,0.68435029,146.94,146.89,12.32]
[1768344361117,0.68435029,146.94,146.87,10.31880473]
[1768344361298,0.68435029,146.94,146.85,6.80932564]
[1768344361299,0.68435029,146.93,146.86,10.31880473]
[1768344361518,0.68435029,146.93,146.87,12.32]
[1768344361704,0.68435029,146.91,146.87,12.32]
[1768344362101,0.68435029,146.91,146.87,22.63880473]
[1768344362298,0.68435029,146.91,146.87,12.32]
[1768344362599,0.68435029,146.91,146.87,22.63880473]
[1768344362918,6.80716144,146.91,146.87,12.32]
[1768344363218,0.68435029,146.9,146.87,12.32]
[1768344364516,7.49151173,146.91,146.87,12.32]
[1768344366524,27.33466107,146.93,146.87,22.63880473]
[1768344366525,0.69589987,146.93,146.87,22.63880473]
[1768344366722,0.69589987,146.92,146.87,22.63880473]
[1768344367017,0.69589987,146.92,146.88,10.31880473]
[1768344367614,0.69589987,146.92,146.87,19.12850391]
[1768344367615,7.50201922,146.93,146.89,10.31880473]
[1768344368020,0.69589987,146.93,146.89,10.31880473]
[1768344368222,0.69589987,146.93,146.9,10.31880473]
[1768344368397,0.69589987,146.93,146.89,10.31880473]
[1768344368726,0.69589987,146.97,146.92,10.31880473]
[1768344368904,0.69589987,146.97,146.93,10.31880473]
[1768344369241,0.69589987,146.97,146.92,10.31880473]
[1768344369918,0.69589987,146.96,146.91,10.31880473]
[1768344370309,0.69589987,146.96,146.9,22.63880473]
[1768344370714,7.50073843,146.96,146.92,10.31880473]
[1768344371011,7.50073843,146.96,146.91,10.31880473]
[1768344371534,7.50073843,146.96,146.91,3.8860613]
[1768344371728,7.50073843,146.96,146.9,19.12726178]
[1768344372023,7.50073843,146.96,146.91,3.8860613]
[1768344372221,0.69589987,146.95,146.9,19.12726178]
[1768344372526,0.69589987,146.95,146.91,3.8860613]
[1768344373230,7.50000955,146.97,146.92,3.8860613]
[1768344373407,0.69589987,146.97,146.92,3.8860613]
[1768344374314,0.69589987,146.96,146.91,3.8860613]
[1768344375709,0.69589987,146.99,146.91,3.8860613]
[1768344376019,0.69589987,146.99,146.93,3.8860613]
[1768344376226,0.69589987,146.99,146.95,3.8860613]
[1768344376422,0.69589987,146.99,146.95,10.69102873]
[1768344377016,0.69589987,146.99,146.95,6.80496743]
[1768344377329,0.69589987,146.99,146.95,10.69102873]
[1768344377715,6.90245305,147.01,146.95,10.69102873]
[1768344377716,0.79564852,147.01,146.95,10.69102873]
[1768344377912,7.59795365,147.01,146.95,10.69102873]
[1768344378114,0.69564852,147.0,146.95,3.8860613]
[1768344378514,7.4985031,147.0,146.95,3.8860613]
[1768344379524,0.79564852,147.01,146.96,3.8860613]
[1768344379715,0.1,147.01,146.97,3.8860613]
[1768344380317,0.1,147.01,146.98,3.8860613]
[1768344380626,0.1,147.01,146.98,10.68962498]
[1768344381326,0.1,147.01,146.97,10.68998444]
[1768344381727,0.1,147.01,146.97,3.8860613]
[1768344382330,0.1,147.02,146.99,3.8860613]
[1768344382713,0.1,147.02,147.0,3.8860613]
[1768344384329,0.1,147.02,146.99,10.68922412]
[1768344384836,0.1,147.02,147.0,3.8860613]
[1768344385136,0.69564852,147.06,147.01,3.8860613]
[1768344385341,0.69564852,147.06,146.99,23.81112254]
[1768344385342,0.69564852,147.06,147.0,3.8860613]
[1768344385631,7.49576462,147.06,147.01,3.8860613]
[1768344385931,7.49576462,147.06,146.99,6.80316282]
[1768344386132,7.49576462,147.06,147.01,3.8860613]
[1768344387028,7.49576462,147.06,147.0,6.80265815]
[1768344387339,7.49576462,147.06,147.01,2.48389272]
[1768344388638,0.69564852,147.05,147.01,2.48389272]
[1768344389047,0.69564852,147.05,147.0,2.48389272]
[1768344389328,0.69564852,147.05,147.0,9.28658149]
[1768344390020,0.69564852,147.05,147.0,2.48389272]
[1768344390723,7.49629859,147.05,147.0,2.48389272]
[1768344391144,7.49629859,147.05,146.99,21.60700576]
[1768344391641,7.49577163,147.06,146.99,14.80389272]
[1768344391836,0.69564852,147.05,147.0,2.48389272]
[1768344392025,0.69564852,147.05,146.99,12.32]
[1768344392223,0.69564852,147.05,146.99,19.12292004]
[1768344392426,0.69564852,147.04,146.97,6.6801107]
[1768344392627,0.69564852,147.04,146.98,2.48389272]
[1768344392939,6.80133306,147.03,146.98,2.48389272]
[1768344393345,6.80133306,147.03,146.98,9.28751168]
[1768344393517,0.69564852,147.04,146.99,2.48389272]
[1768344394218,0.69564852,147.02,146.93,2.48389272]
[1768344394414,0.69564852,147.02,146.97,9.28765629]
[1768344394614,0.69564852,147.02,146.98,12.32]
[1768344394818,0.69564852,147.02,146.96,9.28811387]
[1768344394819,7.49790686,147.01,146.96,14.80389272]
[1768344395342,0.66872591,147.0,146.94,14.80389272]
[1768344395512,0.66872591,147.0,146.93,2.48389272]
[1768344395717,0.66872591,146.98,146.92,2.48389272]
[1768344396239,0.66872591,146.98,146.93,2.48389272]
[1768344396422,0.66872591,147.0,146.95,2.48389272]
[1768344396742,0.66872591,147.0,146.95,14.80389272]
[1768344396925,0.66872591,146.99,146.95,12.32]
[1768344397124,0.66872591,146.99,146.95,14.80389272]
[1768344397314,0.66872591,146.99,146.96,2.48389272]
[1768344398021,7.47103965,147.01,146.96,2.48389272]
[1768344398221,7.47103965,147.01,146.95,19.12500583]
[1768344398222,0.66872591,147.01,146.95,19.12500583]
[1768344398418,2.48389272,147.07,146.95,19.12500583]
[1768344398419,0.66872591,147.03,146.95,19.12500583]
[1768344398623,0.66872591,147.03,146.98,2.48389272]
[1768344398829,0.66872591,147.03,146.95,19.12500583]
[1768344398830,0.66872591,147.03,146.99,2.48389272]
[1768344399336,0.66872591,147.03,146.99,14.80389272]
[1768344399537,0.66872591,147.03,147.0,2.48389272]
[1768344399727,0.66872591,147.03,146.99,19.12317882]
[1768344400236,0.66872591,147.03,147.0,2.48389272]
[1768344400824,7.46924539,147.05,147.0,2.48389272]
[1768344401140,0.66872591,147.04,146.99,21.60707154]
[1768344401344,0.66872591,147.04,147.0,2.48389272]
[1768344401562,0.66872591,147.04,146.99,21.60707154]
[1768344401920,7.46976197,147.04,146.99,21.60707154]
[1768344402115,0.66872591,147.03,146.99,14.80389272]
[1768344402625,0.66872591,147.03,146.99,12.32]
[1768344403426,0.66872591,147.03,146.98,19.1235353]
[1768344404548,0.66872591,147.03,146.98,6.8035353]
[1768344405039,0.66872591,147.03,146.97,25.80402677]
[1768344405218,0.66872591,147.02,146.97,25.80402677]
[1768344405734,7.47055247,147.02,146.97,25.80402677]
[1768344405934,0.66872591,147.01,146.97,25.80402677]
[1768344406646,7.47055247,147.02,146.97,25.80402677]
[1768344409046,0.66872591,147.01,146.97,25.80402677]
[1768344412739,0.66872591,147.02,146.97,25.80402677]
[1768344413253,7.47055248,147.02,146.97,25.80402677]
[1768344413452,0.66872591,147.02,146.97,25.80402677]
[1768344415265,0.66872591,147.02,146.97,42.81430097]
[1768344415757,0.66872591,147.02,146.97,36.13419027]
[1768344417939,0.66872591,147.02,146.97,23.81419027]
[1768344418143,0.66872591,147.02,146.98,12.32]
[1768344418349,0.66872591,147.02,146.99,6.80318389]
[1768344419164,0.66872591,147.02,146.99,19.12318389]
[1768344420166,0.66872591,147.02,146.98,12.32]
[1768344421547,0.66872591,147.01,146.95,6.80501362]
[1768344421963,0.66872591,147.0,146.95,6.80501362]
[1768344423847,0.66872591,146.97,146.9,6.80722767]
[1768344424048,0.66872591,146.96,146.89,29.33846122]
[1768344424254,0.66872591,146.96,146.9,6.80735194]
[1768344428558,0.71358978,146.95,146.9,6.80735194]
[1768344429652,19.49325779,146.99,146.9,6.80735194]
[1768344429653,0.71358978,146.97,146.9,6.80735194]
[1768344430276,0.71358978,146.95,146.9,6.80735194]
[1768344430595,0.71358978,146.94,146.89,19.127651]
[1768344433875,0.71358978,146.94,146.88,6.80812746]
[1768344434058,0.71358978,146.93,146.88,12.32]
[1768344434254,0.71358978,146.93,146.88,19.1279429]
[1768344435961,0.71358978,146.93,146.88,11.595]
[1768344436277,0.71358978,146.91,146.88,11.595]
[1768344436467,0.71358978,146.91,146.86,0.68764252]
[1768344436772,0.71358978,146.89,146.85,12.32]
[1768344436977,0.71358978,146.89,146.84,12.32]
[1768344437175,0.72072452,146.87,146.84,12.32]
[1768344437379,6.80913513,146.87,146.82,0.2]
[1768344437570,2.48452051,146.85,146.82,0.2]
[1768344437757,2.48452051,146.85,146.8,0.2]
[1768344438463,23.83099119,146.87,146.81,0.68309173]
[1768344438778,2.48452051,146.94,146.85,34.29928761]
[1768344438977,23.81600435,146.96,146.87,0.68309173]
[1768344439178,2.48452051,146.93,146.87,0.68309173]
[1768344439354,0.72072452,146.92,146.85,7.49276146]
[1768344439559,0.72072452,146.92,146.86,0.68309173]
[1768344440465,0.72072452,146.92,146.86,7.49203858]
[1768344440674,0.72072452,146.92,146.87,0.68309173]
[1768344440875,2.48452051,146.91,146.87,0.68309173]
[1768344441778,0.71975738,146.9,146.85,0.68309173]
[1768344441984,2.48452051,146.89,146.85,0.68309173]
[1768344442294,0.71880948,146.88,146.84,12.32]
[1768344442593,6.80647834,146.92,146.84,12.32]
[1768344442594,3.11042654,146.87,146.84,12.32]
[1768344442796,2.48452051,146.87,146.8,7.01184853]
[1768344443088,36.1825415,146.92,146.8,0.2]
[1768344443089,2.48452051,146.85,146.8,0.2]
[1768344443271,0.72072452,146.84,146.8,0.2]
[1768344444459,0.72072452,146.84,146.8,0.88309173]
[1768344444667,0.72072452,146.84,146.8,7.69505534]
[1768344445787,3.10853065,146.85,146.8,7.69505534]
[1768344446197,0.62401014,146.85,146.8,7.69505534]
[1768344446494,3.10853065,146.85,146.8,7.69505534]
[1768344449400,4.51625597,146.85,146.8,7.69505534]
[1768344449695,0.71975738,146.84,146.8,7.01196361]
[1768344449900,0.71975738,146.84,146.8,7.69505534]
[1768344450305,4.61297035,146.86,146.8,7.69505534]
[1768344450505,0.62401014,146.85,146.8,7.69505534]
[1768344450805,0.62401014,146.85,146.8,7.01196361]
[1768344451797,0.72072452,146.87,146.81,0.68309173]
[1768344452104,3.89224583,146.86,146.81,0.68309173]
[1768344452399,3.89224583,146.89,146.82,0.68309173]
[1768344452608,0.72072452,146.9,146.84,0.68309173]
[1768344452783,3.89224583,146.89,146.84,0.68309173]
[1768344453200,0.72072452,146.9,146.84,0.68309173]
[1768344453506,3.89224583,146.91,146.84,0.68309173]
[1768344453809,0.71975738,146.9,146.84,0.68309173]
[1768344453982,0.71975738,146.9,146.86,0.68309173]
[1768344454790,4.61297035,146.92,146.86,0.68309173]
[1768344455978,4.61297035,146.92,146.87,0.68649469]
[1768344458194,4.61297035,146.92,146.87,7.49508833]
[1768344459400,4.61297035,146.92,146.88,0.68649469]
[1768344459708,3.89224583,146.92,146.88,0.68649469]
[1768344460184,0.65956101,146.93,146.88,0.68649469]
[1768344460496,4.57680785,146.92,146.87,6.80842776]
[1768344460692,4.55180684,146.92,146.88,0.68649469]
[1768344461688,4.55180684,146.92,146.88,7.49470582]
[1768344462387,24.51659929,147.0,146.89,0.68649469]
[1768344462388,3.89224583,146.94,146.89,0.68649469]
[1768344462596,3.16724583,146.94,146.91,0.68649469]
[1768344462912,3.89224583,146.95,146.92,0.68649469]
[1768344463299,3.89224583,146.95,146.91,12.34]
[1768344463485,4.57706038,146.95,146.91,12.34]
[1768344463680,3.89224583,146.94,146.91,12.34]
[1768344464001,3.89224583,146.92,146.87,0.68649469]
[1768344464208,3.89224583,146.92,146.89,0.68649469]
[1768344464393,3.89224583,146.92,146.87,12.34]
[1768344464394,0.68481455,146.93,146.88,0.68649469]
[1768344464599,3.89224583,146.93,146.9,0.68649469]
[1768344465913,0.68481455,146.95,146.9,7.49370857]
[1768344466087,0.68481455,146.95,146.91,0.68649469]
[1768344466287,4.57706038,146.96,146.91,0.68649469]
[1768344466697,0.68481455,146.95,146.91,0.68649469]
[1768344466884,4.57706038,146.95,146.91,0.68649469]
[1768344467192,27.47089809,146.99,146.93,0.68649469]
[1768344467398,27.47089809,146.99,146.94,0.68649469]
[1768344467399,26.78608354,146.99,146.94,0.68649469]
[1768344467606,3.89224583,147.02,146.94,0.68649469]
[1768344468413,3.89224583,147.04,146.96,0.68649469]
[1768344468619,3.89224583,147.04,146.98,0.68649469]
[1768344469118,3.89224583,147.04,146.99,7.48967858]
[1768344469289,3.89224583,147.04,146.99,6.80318389]
[1768344469489,0.68481455,147.05,146.99,6.80318389]
[1768344469711,0.68481455,147.04,146.99,7.48967858]
[1768344470098,0.65481456,147.04,146.99,7.48967858]
[1768344471114,0.62481457,147.04,146.99,7.48967858]
[1768344471414,0.1,147.06,147.0,0.68649469]
[1768344471598,0.1,147.06,147.02,0.68649469]
[1768344471986,0.1,147.08,147.03,0.68649469]
[1768344472205,0.1,147.08,147.05,0.68649469]
[1768344472399,3.20547128,147.11,147.07,0.68649469]
[1768344472601,3.89224583,147.14,147.08,0.68649469]
[1768344473190,0.68481455,147.13,147.09,6.7985587]
[1768344473510,0.68481455,147.13,147.1,12.34]
[1768344473813,0.63994463,147.12,147.08,0.68649469]
[1768344474020,0.63994463,147.12,147.07,12.34]
[1768344474197,0.68436585,147.11,147.07,12.34]
[1768344474392,10.28684301,147.12,147.08,0.68649469]
[1768344475491,10.28684301,147.13,147.09,0.68649469]
[1768344475813,0.73994463,147.17,147.12,0.68649469]
[1768344476142,0.64082421,147.13,147.09,0.68649469]
[1768344476422,0.64082421,147.13,147.07,13.00649469]
[1768344476423,10.28684301,147.12,147.07,13.00649469]
[1768344476656,10.28684301,147.12,147.07,19.80597211]
[1768344476792,10.97033807,147.12,147.07,13.00649469]
[1768344476993,0.63994463,147.16,147.08,0.68649469]
[1768344477193,0.68349506,147.11,147.06,12.32]
[1768344477415,0.68349506,147.11,147.06,19.11989804]
[1768344478004,0.68349506,147.11,147.06,19.80639273]
[1768344478322,0.68349506,147.11,147.06,19.11989804]
[1768344478823,10.92678764,147.12,147.07,7.485915]
[1768344479194,0.68436585,147.11,147.06,13.00649469]
[1768344479493,0.68481455,147.21,147.12,0.68649469]
[1768344479695,0.68481455,147.21,147.13,12.32]
[1768344479905,0.68481455,147.19,147.1,6.6801107]
[1768344480107,0.68481455,147.17,147.11,12.32]
[1768344481007,0.68481455,147.16,147.08,12.32]
[1768344481595,0.68481455,147.15,147.09,6.7985587]
[1768344481796,0.68481455,147.14,147.09,6.7985587]
[1768344482493,0.68481455,147.14,147.08,19.11888861]
[1768344482904,0.68481455,147.25,147.11,6.6801107]
[1768344483230,0.68481455,147.21,147.13,6.6801107]
[1768344483431,0.68481455,147.2,147.13,6.6801107]
[1768344483629,0.68481455,147.2,147.14,6.79624847]
[1768344483931,0.68481455,147.2,147.14,23.78686964]
[1768344485005,0.68520062,147.19,147.14,23.78686964]
[1768344485222,0.68520062,147.19,147.13,6.7966056]
[1768344485412,0.68520062,147.18,147.13,6.7966056]
[1768344485604,0.68520062,147.18,147.11,16.99354606]
[1768344486450,0.68520062,147.17,147.11,16.99354606]
[1768344486915,0.68520062,147.16,147.1,6.79809653]
[1768344487528,0.68520062,147.16,147.09,16.9960501]
[1768344487841,0.68520062,147.15,147.09,16.9960501]
[1768344493631,0.68520062,147.15,147.08,6.79902094]
[1768344494345,0.68520062,147.15,147.08,23.79657329]
[1768344494543,0.68520062,147.15,147.08,6.79902094]
[1768344494944,0.68520062,147.15,147.08,23.79657329]
[1768344495254,6.7949956,147.17,147.08,23.79657329]
[1768344495747,12.34,147.16,147.08,23.79657329]
[1768344496937,12.34,147.16,147.07,80.25162337]
[1768344496938,3.87545638,147.15,147.07,80.25162337]
[1768344497138,0.6629608,147.15,147.07,80.25162337]
[1768344497344,19.13556219,147.16,147.07,80.25162337]
[1768344497345,0.6629608,147.13,147.07,80.25162337]
[1768344497746,0.6629608,147.12,147.07,80.25162337]
[1768344498048,19.13556219,147.16,147.07,80.25162337]
[1768344498049,13.0029608,147.11,147.07,80.25162337]
[1768344498222,23.78387423,147.16,147.07,80.25162337]
[1768344498223,1e-08,147.12,147.07,80.25162337]
[1768344498428,13.0029608,147.14,147.07,80.25162337]
[1768344499240,13.0029608,147.14,147.07,97.25033146]
[1768344500437,0.6629608,147.13,147.07,97.25033146]
[1768344501254,13.0029608,147.14,147.08,0.69216365]
[1768344501751,0.6629608,147.17,147.11,0.69216365]
[1768344501953,0.6629608,147.23,147.11,0.69216365]
[1768344502157,0.6629608,147.23,147.13,0.69216365]
[1768344502557,3.87545638,147.25,147.13,0.69216365]
[1768344502558,0.6629608,147.24,147.13,0.69216365]
[1768344502858,0.6629608,147.24,147.15,0.69216365]
[1768344503230,0.6629608,147.24,147.17,0.69216365]
[1768344503231,0.63296081,147.24,147.17,0.69216365]
[1768344503826,10.90374211,147.24,147.17,0.69216365]
[1768344504062,10.2707813,147.22,147.14,23.78686964]
[1768344504234,10.2707813,147.23,147.15,0.69216365]
[1768344504852,16.97544883,147.28,147.17,0.69216365]
[1768344505037,10.2707813,147.24,147.17,0.69216365]
[1768344505246,10.9337421,147.23,147.17,0.69216365]
[1768344505554,0.6629608,147.23,147.17,0.69216365]
[1768344506252,10.9337421,147.23,147.17,0.69216365]
[1768344506450,10.9337421,147.24,147.17,0.69216365]
[1768344506630,0.6629608,147.24,147.17,0.69216365]
[1768344506954,0.6629608,147.24,147.18,7.48656506]
[1768344507157,0.6629608,147.24,147.19,0.69216365]
[1768344507455,0.6629608,147.24,147.18,6.79440141]
[1768344507456,10.2707813,147.29,147.21,0.69216365]
[1768344507664,10.9337421,147.3,147.21,0.69216365]
[1768344508249,10.2707813,147.29,147.22,0.69216365]
[1768344508444,0.6629608,147.3,147.25,0.69216365]
[1768344508647,10.2707813,147.31,147.25,0.69216365]
[1768344509130,0.1,147.32,147.25,0.69216365]
[1768344509331,0.7629608,147.32,147.25,0.69216365]
[1768344509637,0.6629608,147.31,147.25,0.69216365]
[1768344510046,10.9337421,147.31,147.25,0.69216365]
[1768344510243,10.9337421,147.31,147.26,6.7907103]
[1768344510653,0.6629608,147.31,147.26,6.7907103]
[1768344510958,10.9337421,147.31,147.26,7.48287395]
[1768344511147,0.6629608,147.31,147.26,7.48287395]
[1768344511358,9.84635298,147.33,147.3,0.69216365]
[1768344511359,3.05883782,147.33,147.3,0.69216365]
[1768344511669,1e-08,147.33,147.26,36.08748607]
[1768344511968,163.4592989,147.39,147.31,0.6629608]
[1768344511969,0.4592989,147.39,147.31,0.6629608]
[1768344512139,0.4592989,147.39,147.33,0.6629608]
[1768344512335,0.4592989,147.39,147.34,6.78702321]
[1768344512548,6.77213395,147.39,147.33,7.4504358]
[1768344512739,6.77213395,147.39,147.33,6.787475]
[1768344512961,0.4592989,147.39,147.33,6.787475]
[1768344513361,6.77213395,147.39,147.33,6.787475]
[1768344513866,0.4592989,147.39,147.33,6.787475]
[1768344514059,0.4592989,147.39,147.32,12.32]
[1768344514060,0.6629608,147.38,147.32,12.32]
[1768344514263,0.6629608,147.38,147.33,6.78742968]
[1768344514683,0.6629608,147.38,147.33,7.45039048]
[1768344515572,0.72211204,147.38,147.33,6.78742968]
[1768344515773,0.4592989,147.39,147.35,0.6629608]
[1768344515974,0.72211204,147.46,147.39,0.2036619]
[1768344516268,0.72211204,147.46,147.4,12.3]
[1768344516471,7.03494709,147.46,147.4,12.3]
[1768344516652,1.32365581,147.48,147.37,6.6801107]
[1768344516653,7.03494709,147.45,147.38,0.2036619]
[1768344516861,0.72211204,147.42,147.37,12.3]
[1768344517065,0.72211204,147.41,147.34,23.95806132]
[1768344517259,0.72211204,147.41,147.36,12.3]
[1768344517462,0.72211204,147.44,147.36,12.3]
[1768344517668,6.78164261,147.46,147.35,0.2036619]
[1768344517669,0.72211204,147.42,147.35,0.2036619]
[1768344517847,7.50559767,147.42,147.35,0.2036619]
[1768344518054,7.03494709,147.41,147.35,12.5036619]
[1768344518249,0.72211204,147.41,147.35,12.5036619]
[1768344518570,0.72211204,147.41,147.35,19.28998377]
[1768344518748,7.03494709,147.41,147.35,19.28998377]
[1768344518946,0.72211204,147.41,147.35,19.28998377]
[1768344519268,0.72211204,147.41,147.35,36.25639028]
[1768344519445,0.72211204,147.41,147.35,19.28998377]
[1768344520350,0.72211204,147.43,147.36,0.2036619]
[1768344520653,7.03494709,147.43,147.36,0.2036619]
[1768344521052,0.72211204,147.43,147.37,12.3]
[1768344521267,7.03494709,147.43,147.37,12.3]
[1768344521459,0.72211204,147.43,147.37,12.3]
[1768344521871,7.03494709,147.43,147.37,12.3]
[1768344522165,0.72211204,147.42,147.37,12.3]
[1768344522342,7.03494709,147.42,147.37,12.3]
[1768344522758,7.50511538,147.43,147.36,6.98971415]
[1768344522962,7.03494709,147.42,147.36,6.98971415]
[1768344523170,0.72211204,147.41,147.37,6.78552465]
[1768344523469,0.72211204,147.4,147.33,16.96845819]
[1768344523683,0.72211204,147.4,147.34,6.78690158]
[1768344524056,7.03494709,147.4,147.34,6.78702321]
[1768344524382,0.72211204,147.37,147.33,12.3]
[1768344524586,6.31283505,147.38,147.33,12.3]
[1768344524749,7.03494709,147.38,147.33,12.3]
[1768344524949,0.72211204,147.38,147.33,12.3]
[1768344525844,0.72211204,147.46,147.34,0.2036619]
[1768344526049,0.72211204,147.41,147.35,6.7865626]
[1768344526347,0.72211204,147.41,147.35,6.9902245]
[1768344527563,0.72211204,147.45,147.38,6.8837726]
[1768344527876,1.11999391,147.48,147.45,0.2036619]
[1768344528060,1.11999391,147.48,147.44,12.3]
[1768344528573,0.72211204,147.47,147.39,12.3]
[1768344528771,3.19526544,147.47,147.39,12.3]
[1768344528952,0.72211204,147.47,147.39,12.3]
[1768344529352,1.11999391,147.48,147.41,0.70368532]
[1768344529865,23.72238036,147.54,147.41,13.00368532]
[1768344530177,6.30126959,147.48,147.41,13.00368532]
[1768344530579,6.30126959,147.49,147.42,0.70368532]
[1768344530760,57.61149517,147.54,147.42,0.70368532]
[1768344530961,6.30126959,147.49,147.42,0.70368532]
[1768344531378,0.72211204,147.48,147.43,6.78288001]
[1768344531699,0.72211204,147.47,147.4,17.6643366]
[1768344531880,0.72211204,147.47,147.41,6.78342987]
[1768344532282,0.72211204,147.47,147.41,19.08342987]
[1768344532856,0.72211204,147.46,147.41,19.08342987]
[1768344533169,6.30126959,147.51,147.45,0.70368532]
[1768344533375,13.08005096,147.52,147.45,7.48524781]
[1768344533758,13.08005096,147.52,147.45,0.70368532]
[1768344533959,6.77878137,147.52,147.45,7.48563006]
[1768344534268,6.30126959,147.51,147.45,7.48563006]
[1768344534766,6.30126959,147.51,147.45,6.78194474]
[1768344534969,0.72211204,147.5,147.44,6.78241996]
[1768344535168,0.72211204,147.49,147.44,6.78241996]
[1768344536276,0.72211204,147.49,147.43,23.74008003]
[1768344536877,0.72211204,147.49,147.43,6.78288001]
[1768344536878,0.72211204,147.48,147.43,6.78288001]
[1768344537386,0.72211204,147.47,147.43,6.78288001]
[1768344537680,0.72211204,147.48,147.43,6.78288001]
[1768344539270,0.72211204,147.47,147.43,6.78288001]
[1768344541275,0.72211204,147.47,147.42,6.78329242]